fUSD/lending_fUSD_20260429
["ID","MTS","AMOUNT","RATE_DAILY","PERIOD"]
[421331779,1777449033595,-188.8,9.609e-05,2]
[421331780,1777449033604,-200.0,9.769e-05,2]
[421331781,1777449033614,-799.54513345,9.769e-05,2]
[421331782,1777449033624,-301.00069851,9.769e-05,2]
[421331783,1777449033634,-225.18697532,9.769e-05,2]
[421331784,1777449033644,-407.08,9.822e-05,2]
[421331785,1777449033655,-2000.0,9.9e-05,2]
[421331786,1777449033665,-587.0,9.926e-05,2]
[421331787,1777449033675,-2351.0,9.926e-05,2]
[421331788,1777449033685,-250.0,9.965e-05,2]
[421331789,1777449033696,-297.52,9.984e-05,2]
[421331790,1777449033707,-191.65275436,0.0001,2]
[421331791,1777449033717,-18500.02,0.0001,2]
[421331792,1777449033727,-151.0,0.0001,2]
[421331793,1777449033738,-1676.72085428,0.0001,2]
[421331794,1777449033748,-4589.45607297,0.0001,2]
[421331795,1777449033758,-3797.06528445,0.0001,2]
[421331796,1777449033768,-4108.06504584,0.0001,2]
[421331797,1777449033779,-4193.26067867,0.0001,2]
[421331798,1777449033789,-172.80904265,0.0001,2]
[421331799,1777449033800,-175.87174018,0.0001,2]
[421331800,1777449033811,-158.57010029,0.0001,2]
[421331801,1777449033822,-177.45883982,0.0001,2]
[421331802,1777449033833,-500.0,0.0001,2]
[421331803,1777449033843,-151.0,0.0001,2]
[421331804,1777449033855,-151.0,0.0001,2]
[421331805,1777449033867,-500.0,0.0001,2]
[421331806,1777449033878,-151.0,0.0001,2]
[421331807,1777449033889,-500.0,0.0001,2]
[421331808,1777449033900,-500.0,0.0001,2]
[421331809,1777449033911,-151.0,0.0001,2]
[421331810,1777449033922,-500.0,0.0001,2]
[421331811,1777449033932,-151.0,0.0001,2]
[421331812,1777449033942,-500.0,0.0001,2]
[421331813,1777449033954,-151.0,0.0001,2]
[421331814,1777449033964,-500.0,0.0001,2]
[421331815,1777449033973,-151.0,0.0001,2]
[421331816,1777449033984,-500.0,0.0001,2]
[421331817,1777449033993,-151.0,0.0001,2]
[421331818,1777449034003,-500.0,0.0001,2]
[421331819,1777449034013,-151.0,0.0001,2]
[421331820,1777449034023,-500.0,0.0001,2]
[421331821,1777449034034,-151.0,0.0001,2]
[421331822,1777449034045,-500.0,0.0001,2]
[421331823,1777449034056,-151.0,0.0001,2]
[421331824,1777449034066,-151.0,0.0001,2]
[421331825,1777449034076,-151.0,0.0001,2]
[421331826,1777449034086,-151.0,0.0001,2]
[421331827,1777449034096,-151.0,0.0001,2]
[421331828,1777449034106,-151.0,0.0001,2]
[421331829,1777449034116,-151.0,0.0001,2]
[421331830,1777449034126,-151.0,0.0001,2]
[421331831,1777449034136,-151.0,0.0001,2]
[421331832,1777449034146,-151.0,0.0001,2]
[421331833,1777449034156,-151.0,0.0001,2]
[421331834,1777449034165,-500.0,0.0001,2]
[421331835,1777449034175,-151.0,0.0001,2]
[421331836,1777449034185,-500.0,0.0001,2]
[421331837,1777449034195,-151.0,0.0001,2]
[421331838,1777449034204,-500.0,0.0001,2]
[421331839,1777449034213,-151.0,0.0001,2]
[421331840,1777449034223,-500.0,0.0001,2]
[421331841,1777449034233,-151.0,0.0001,2]
[421331842,1777449034242,-500.0,0.0001,2]
[421331843,1777449034252,-286.09257819,0.0001,2]
[421331844,1777449034262,-500.0,0.0001,2]
[421331845,1777449034272,-500.0,0.0001,2]
[421331846,1777449034282,-500.0,0.0001,2]
[421331847,1777449034292,-500.0,0.0001,2]
[421331848,1777449034301,-500.0,0.0001,2]
[421331849,1777449034311,-500.0,0.0001,2]
[421331850,1777449034320,-151.0,0.0001,2]
[421331851,1777449034330,-814.78278579,0.0001,2]
[421331852,1777449034339,-368.49480487,0.0001,2]
[421331853,1777449034349,-368.49480487,0.0001,2]
[421331854,1777449034358,-368.49480487,0.0001,2]
[421331855,1777449034369,-2000.0,0.0001,2]
[421331856,1777449034379,-2000.0,0.0001,2]
[421331857,1777449034389,-2000.0,0.0001,2]
[421331858,1777449034399,-2000.0,0.0001,2]
[421331859,1777449034409,-2000.0,0.0001,2]
[421331860,1777449034418,-2000.0,0.0001,2]
[421331861,1777449034428,-500.0,0.00010027,2]
[421331862,1777449034437,-194.72792766,0.00010091,2]
[421331863,1777449034447,-433.0,0.00010105,2]
[421331864,1777449034456,-203.0,0.00010137,2]
[421331865,1777449034466,-200.0,0.00010317,2]
[421331866,1777449034476,-829.12830338,0.00010317,2]
[421331867,1777449034486,-193.18296559,0.00010317,2]
[421331868,1777449034495,-233.51889341,0.00010317,2]
[421331869,1777449034505,-151.0,0.00010548,2]
[421331870,1777449034515,-156.41164269,0.000106,2]
[421331871,1777449034524,-153.87363941,0.000106,2]
[421331872,1777449034534,-5000.0,0.000106,2]
[421331873,1777449034545,-201.93286099,0.00010639,2]
[421331874,1777449034556,-500.0,0.00010673,2]
[421331875,1777449034566,-501.64017088,0.00010673,2]
[421331876,1777449034576,-336.70479509,0.0001069,2]
[421331877,1777449034586,-152.0,0.000107,5]
[421331878,1777449034596,-60463.14772132,0.000107,2]
[421331879,1777449034611,-158571.60542242,0.000107,2]
[421331880,1777449034623,-6047.68279842,0.000107,2]
[421331881,1777449034643,-284.15203215,0.000107,2]
[421331882,1777449034655,-347.8503141,0.000107,2]
[421331883,1777449034674,-984.81579913,0.000107,2]
[421331884,1777449034687,-2021.32197705,0.000107,2]
[421331885,1777449038173,-1979.42774988,0.000107,2]
[421331886,1777449038194,-2008.31450221,0.000107,2]
[421331887,1777449038206,-2639.46081573,0.000107,2]
[421331888,1777449038218,-1193.48095674,0.000107,2]
[421331889,1777449038318,-22238.65313993,0.000107,2]
[421331890,1777449038338,-1715.08907949,0.000107,2]
[421331891,1777449038350,-866.12932493,0.000107,2]
[421331892,1777449038370,-1722.94122752,0.000107,2]
[421331893,1777449038382,-359.96230042,0.000107,2]
[421331906,1777449040450,-62880.9826999,0.000107,2]
[421331907,1777449040504,-297.0302,0.000107,2]
[421331908,1777449040559,-13956.87123842,0.000107,2]
[421331909,1777449040571,-7210.39503157,0.000107,2]
[421331910,1777449040612,-880.36183964,0.000107,2]
[421331911,1777449040719,-335.38,0.000107,2]
[421331951,1777449043214,-987.98063443,0.000107,2]
[421331957,1777449046008,-1777.293386,0.000107,2]
[421331958,1777449046084,-4700.58213335,0.000107,2]
[421331959,1777449046226,-3854.0,0.000107,2]
[421331960,1777449046240,-324.80100658,0.000107,2]
[421331961,1777449046543,-2795.12844137,0.000107,2]
[421331964,1777449049584,10000.0,0.00030137,120]
[421331965,1777449055278,1254.68435661,8.106e-05,2]
[421331966,1777449064518,10000.0,0.00030137,120]
[421331967,1777449085685,9295.38,0.00030137,120]
[421331968,1777449164103,727.0,8.087e-05,2]
[421331969,1777449164143,727.0,8.026e-05,2]
[421331970,1777449214213,3114.7214502,0.00030137,120]
[421331972,1777449291704,608.09,0.00028599,120]
[421331973,1777449292732,608.09,0.00029899,120]
[421331974,1777449292815,608.09,0.00029899,120]
[421331975,1777449292860,608.09,0.00029899,120]
[421331976,1777449292920,608.09,0.00029899,120]
[421331977,1777449292965,608.13,0.00029899,120]
[421331978,1777449305557,156.92,0.00030137,120]
[421331980,1777449498731,5000.0,0.00030137,120]
[421331981,1777449523748,5027.68,0.00030137,120]
[421331982,1777449619275,10000.0,0.00030137,120]
[421331983,1777449628866,971.9019976,0.00030136,120]
[421331985,1777449632932,8519.49,0.00030137,120]
[421331986,1777449633074,394.75243131,7.888e-05,2]
[421331987,1777449635649,12460.19,0.00030137,120]
[421331989,1777449649670,15599.66204002,0.0003013,120]
[421331992,1777449829501,50274.27,0.00030136,120]
[421331995,1777450014768,-256.0,8.152e-05,2]
[421331996,1777450042051,256.0,8.152e-05,2]
[421331998,1777450117376,256.0,8.152e-05,2]
[421331999,1777450192715,256.0,8.152e-05,2]
[421332001,1777450231964,-500.0,8.152e-05,2]
[421332002,1777450231974,-250.0,8.192e-05,2]
[421332003,1777450232000,-300.31539057,8.222e-05,2]
[421332004,1777450232013,-250.0,8.229e-05,2]
[421332005,1777450232023,-1200.0,8.231e-05,2]
[421332006,1777450232033,-190.0,8.231e-05,2]
[421332007,1777450232044,-300.0,8.231e-05,2]
[421332008,1777450232055,-1200.0,8.231e-05,2]
[421332009,1777450232067,-3133.98958531,8.232e-05,2]
[421332010,1777450232078,-2500.0,8.232e-05,2]
[421332011,1777450232088,-2500.0,8.232e-05,2]
[421332012,1777450232100,-2500.0,8.232e-05,2]
[421332013,1777450232111,-2500.0,8.232e-05,2]
[421332014,1777450232122,-363.28870372,8.251e-05,2]
[421332015,1777450232133,-578.20924308,8.297e-05,2]
[421332016,1777450232143,-174.61919141,8.396e-05,2]
[421332017,1777450232153,-181.08010149,8.944e-05,2]
[421332018,1777450232164,-150.0,8.966e-05,2]
[421332019,1777450232175,-2500.0,8.967e-05,2]
[421332020,1777450232186,-250.0,8.967e-05,2]
[421332021,1777450232196,-484.27175358,8.967e-05,2]
[421332022,1777450232206,-300.0,8.967e-05,2]
[421332023,1777450232217,-297.32419767,8.967e-05,2]
[421332024,1777450232228,-150.0,9e-05,2]
[421332025,1777450232238,-420.0,9.054e-05,2]
[421332026,1777450232249,-1680.0,9.054e-05,2]
[421332027,1777450232259,-363.28870371,9.117e-05,2]
[421332028,1777450232270,-250.0,9.267e-05,2]
[421332029,1777450232281,-500.0,9.267e-05,2]
[421332031,1777450232291,-348.18339672,9.267e-05,2]
[421332033,1777450232302,-500.0,9.267e-05,2]
[421332035,1777450232312,-500.0,9.267e-05,2]
[421332037,1777450232322,-500.0,9.267e-05,2]
[421332039,1777450232332,-509.07626263,9.267e-05,2]
[421332041,1777450232343,-170.54880318,9.267e-05,2]
[421332043,1777450232355,-500.0,9.267e-05,2]
[421332045,1777450232365,-500.0,9.267e-05,2]
[421332047,1777450232376,-500.35479479,9.267e-05,2]
[421332050,1777450232393,-500.0,9.267e-05,2]
[421332052,1777450232403,-500.0,9.267e-05,2]
[421332054,1777450232414,-500.0,9.267e-05,2]
[421332056,1777450232425,-500.97968492,9.267e-05,2]
[421332058,1777450232436,-500.0,9.267e-05,2]
[421332060,1777450232447,-303.64022644,9.267e-05,2]
[421332062,1777450232459,-281.08027931,9.267e-05,2]
[421332064,1777450232469,-1439437.0686653,9.268e-05,2]
[421332066,1777450232485,-55235.78439884,9.268e-05,2]
[421332067,1777450232497,-232109.01102459,9.268e-05,2]
[421332068,1777450232511,-57961.43936267,9.268e-05,2]
[421332069,1777450232524,-1254.41808677,9.268e-05,2]
[421332070,1777450232544,-2310.03733085,9.268e-05,2]
[421332071,1777450232566,-1351.1837267,9.268e-05,2]
[421332072,1777450232580,-412.49328626,9.268e-05,2]
[421332073,1777450232594,-300.0,9.268e-05,2]
[421332074,1777450232607,-3221.81881226,9.268e-05,2]
[421332075,1777450238373,-3844.04230576,9.268e-05,2]
[421332076,1777450238383,-299.99,9.369e-05,2]
[421332077,1777450238394,-36319.0,9.384e-05,2]
[421332078,1777450238404,-187.78006525,9.492e-05,2]
[421332079,1777450238414,-150.0,9.592e-05,2]
[421332080,1777450238424,-150.87380379,9.592e-05,2]
[421332081,1777450238434,-150.0,9.592e-05,2]
[421332082,1777450238445,-150.0,9.592e-05,2]
[421332083,1777450238461,-190.3212794,9.592e-05,2]
[421332084,1777450238471,-150.0,9.592e-05,2]
[421332085,1777450238481,-150.0,9.592e-05,2]
[421332086,1777450238492,-150.0,9.592e-05,2]
[421332087,1777450238503,-201.59538633,9.592e-05,2]
[421332088,1777450238513,-150.0,9.592e-05,2]
[421332089,1777450238523,-150.0,9.592e-05,2]
[421332090,1777450238533,-500.0,9.616e-05,2]
[421332091,1777450238543,-150.0,9.631e-05,2]
[421332092,1777450238554,-150.0,9.671e-05,2]
[421332093,1777450238564,-150.0,9.71e-05,2]
[421332094,1777450238575,-150.0,9.744e-05,2]
[421332095,1777450238585,-150.0,9.75e-05,2]
[421332096,1777450238596,-150.0,9.769e-05,2]
[421332097,1777450238607,-150.0,9.769e-05,2]
[421332098,1777450238618,-151.04,9.776e-05,2]
[421332099,1777450238628,-150.0,9.789e-05,2]
[421332100,1777450238639,-150.0,9.805e-05,2]
[421332101,1777450238649,-150.0,9.829e-05,2]
[421332102,1777450238660,-150.0,9.858e-05,2]
[421332103,1777450238671,-255.0,9.863e-05,2]
[421332104,1777450238682,-150.0,9.868e-05,2]
[421332105,1777450238693,-150.0,9.896e-05,2]
[421332106,1777450238704,-150.0,9.908e-05,2]
[421332107,1777450238715,-150.0,9.947e-05,2]
[421332108,1777450238726,-150.0,9.947e-05,2]
[421332109,1777450238736,-150.0,9.947e-05,2]
[421332110,1777450238747,-2351.0,9.959e-05,2]
[421332111,1777450238758,-587.0,9.959e-05,2]
[421332112,1777450238769,-200.0,9.978e-05,2]
[421332113,1777450238780,-721.12765535,9.978e-05,2]
[421332114,1777450238791,-194.84736151,9.978e-05,2]
[421332115,1777450238801,-296.57329841,9.978e-05,2]
[421332116,1777450238812,-363.28870371,9.982e-05,2]
[421332117,1777450238823,-3659.865,9.983e-05,2]
[421332118,1777450238833,-317.169,9.983e-05,2]
[421332119,1777450238843,-9999.99,9.984e-05,2]
[421332120,1777450238858,-150.0,9.987e-05,2]
[421332121,1777450238869,-500.0,0.0001,2]
[421332122,1777450238879,-151.0,0.0001,2]
[421332123,1777450238890,-500.0,0.0001,2]
[421332124,1777450238901,-151.0,0.0001,2]
[421332125,1777450238911,-500.0,0.0001,2]
[421332126,1777450238921,-151.0,0.0001,2]
[421332127,1777450238932,-500.0,0.0001,2]
[421332128,1777450238943,-151.0,0.0001,2]
[421332129,1777450238953,-500.0,0.0001,2]
[421332130,1777450238963,-151.0,0.0001,2]
[421332131,1777450238974,-500.0,0.0001,2]
[421332132,1777450238985,-151.0,0.0001,2]
[421332133,1777450238996,-500.0,0.0001,2]
[421332134,1777450239007,-500.0,0.0001,2]
[421332135,1777450239018,-500.0,0.0001,2]
[421332136,1777450239028,-500.0,0.0001,2]
[421332137,1777450239039,-500.0,0.0001,2]
[421332138,1777450239049,-500.0,0.0001,2]
[421332139,1777450239059,-151.0,0.0001,2]
[421332140,1777450239070,-224.4698634,0.0001,2]
[421332141,1777450239080,-150.0,0.00010018,2]
[421332142,1777450239091,-150.0,0.00010026,2]
[421332143,1777450239102,-308.14696974,0.0001004,2]
[421332144,1777450239113,-150.0,0.00010049,2]
[421332145,1777450239123,-150.0,0.00010065,2]
[421332146,1777450239134,-150.0,0.00010105,2]
[421332147,1777450239144,-150.0,0.00010125,2]
[421332148,1777450239155,-150.0,0.00010125,2]
[421332149,1777450239165,-150.0,0.00010125,2]
[421332150,1777450239175,-150.0,0.00010144,2]
[421332151,1777450239186,-150.0,0.00010146,2]
[421332152,1777450239197,-150.0,0.00010146,2]
[421332153,1777450239207,-261.1064803,0.00010146,2]
[421332154,1777450239217,-150.0,0.00010146,2]
[421332155,1777450239227,-150.0,0.00010184,2]
[421332156,1777450239238,-150.0,0.00010201,2]
[421332157,1777450239249,-150.0,0.00010223,2]
[421332158,1777450239260,-150.0,0.00010231,2]
[421332159,1777450239277,-1189.50415495,0.0001025,2]
[421332160,1777450239289,-150.0,0.00010263,2]
[421332161,1777450239299,-150.0,0.00010302,2]
[421332162,1777450239310,-150.0,0.00010302,2]
[421332163,1777450239321,-150.0,0.00010302,2]
[421332164,1777450239333,-150.0,0.00010342,2]
[421332166,1777450239344,-150.0,0.00010353,2]
[421332167,1777450239355,-150.0,0.00010381,2]
[421332168,1777450239365,-508.0,0.00010384,2]
[421332169,1777450239375,-150.0,0.00010391,2]
[421332170,1777450239386,-500.0,0.00010402,2]
[421332171,1777450239397,-500.0,0.00010402,2]
[421332172,1777450239408,-500.0,0.00010402,2]
[421332173,1777450239418,-500.0,0.00010402,2]
[421332174,1777450239429,-500.0,0.00010402,2]
[421332175,1777450239440,-500.0,0.00010402,2]
[421332177,1777450239451,-500.0,0.00010402,2]
[421332178,1777450239461,-500.0,0.00010402,2]
[421332179,1777450239471,-500.0,0.00010402,2]
[421332180,1777450239483,-500.0,0.00010402,2]
[421332181,1777450239493,-483.61529848,0.00010402,2]
[421332182,1777450239503,-500.0,0.0001042,2]
[421332183,1777450239515,-500.0,0.0001042,2]
[421332184,1777450239526,-500.0,0.0001042,2]
[421332185,1777450239537,-500.0,0.0001042,2]
[421332186,1777450239548,-500.0,0.0001042,2]
[421332187,1777450239559,-500.0,0.0001042,2]
[421332188,1777450239571,-500.0,0.0001042,2]
[421332189,1777450239581,-500.0,0.0001042,2]
[421332190,1777450239592,-500.0,0.0001042,2]
[421332191,1777450239602,-500.0,0.0001042,2]
[421332192,1777450239612,-500.0,0.0001042,2]
[421332193,1777450239623,-179.14777329,0.0001042,2]
[421332194,1777450239634,-150.0,0.00010421,2]
[421332195,1777450239644,-150.0,0.00010444,2]
[421332196,1777450239655,-150.0,0.0001046,2]
[421332197,1777450239665,-1172.560031,0.00010463,2]
[421332198,1777450239676,-792.501666,0.00010463,2]
[421332199,1777450239687,-1339.678283,0.00010463,2]
[421332200,1777450239698,-1664.097201,0.00010463,2]
[421332201,1777450239708,-1056.114551,0.00010463,2]
[421332202,1777450239719,-687.443579,0.00010463,2]
[421332203,1777450239729,-314.921777,0.00010463,2]
[421332204,1777450239739,-150.0,0.0001048,2]
[421332205,1777450239750,-150.0,0.0001048,2]
[421332206,1777450239760,-663.016314,0.00010486,2]
[421332207,1777450239772,-165.791234,0.00010486,2]
[421332208,1777450239782,-150.0,0.000105,2]
[421332209,1777450239793,-2275.2836,0.000105,2]
[421332210,1777450239804,-2500.0,0.000105,2]
[421332211,1777450239814,-5000.0,0.000105,2]
[421332212,1777450239825,-150.0,0.00010505,2]
[421332213,1777450239836,-176.22671612,0.00010518,2]
[421332214,1777450239846,-1767.12626723,0.00010518,2]
[421332215,1777450239865,-3020.84404843,0.00010518,2]
[421332216,1777450239875,-1863.45529876,0.00010518,2]
[421332217,1777450239885,-156.41164265,0.00010536,2]
[421332218,1777450239895,-150.0,0.00010539,2]
[421332219,1777450239906,-151.0,0.00010548,2]
[421332220,1777450239916,-150.0,0.00010579,2]
[421332221,1777450239926,-156.0,0.000106,5]
[421332222,1777450239937,-71793.6157,0.000106,2]
[421332223,1777450239946,-25827.15064765,0.000106,2]
[421332224,1777450240111,-4693.87930378,0.000106,2]
[421332225,1777450240128,-816.62506821,0.000106,2]
[421332241,1777450243431,-185.83933282,0.000105,2]
[421332242,1777450243442,-435.82713004,0.000106,2]
[421332243,1777450243483,-1330.78635032,0.000106,2]
[421332244,1777450243494,-2000.0,0.000106,2]
[421332245,1777450243504,-1579.06530789,0.000106,3]
[421332249,1777450246470,-7158.27989302,0.000106,3]
[421332250,1777450246576,-507.0,0.000106,3]
[421332251,1777450246641,-65315.11352609,0.000106,3]
[421332252,1777450246792,-6356.907251,0.000106,3]
[421332254,1777450251367,239.60219619,0.0003013,120]
[421332256,1777450295803,159.0,0.000301,120]
[421332257,1777450328215,159.0,0.000301,120]
[421332263,1777450764468,442.68882734,0.0003,120]
[421332268,1777450971015,500.0,0.00030136,120]
[421332269,1777451025501,500.0,0.00030136,120]
[421332270,1777451122195,354.0,0.0003013,120]
[421332271,1777451199411,500.0,0.0003013,120]
[421332272,1777451211316,2500.0,0.0003013,120]
[421332273,1777451213996,10000.0,0.00030137,120]
[421332274,1777451228120,2500.0,0.0003013,120]
[421332275,1777451254278,10000.0,0.0003013,120]
[421332278,1777451432237,-266.0,8.969e-05,2]
[421332279,1777451432247,-230.05880406,8.969e-05,2]
[421332280,1777451432448,-530.12669042,8.969e-05,2]
[421332281,1777451432462,-380.51884361,8.969e-05,2]
[421332291,1777451438384,-59.29566191,8.969e-05,2]
[421332292,1777451438395,-220.06211169,8.97e-05,2]
[421332293,1777451438405,-2500.0,8.97e-05,2]
[421332294,1777451438415,-2461.39489295,8.97e-05,2]
[421332295,1777451438439,-38.60510705,8.97e-05,2]
[421332296,1777451438449,-460.80024467,8.97e-05,2]
[421332297,1777451438656,-2039.19975533,8.97e-05,2]
[421332298,1777451438666,-2500.0,8.97e-05,2]
[421332299,1777451438676,-578.20924308,8.971e-05,2]
[421332319,1777451439052,-174.61919141,8.971e-05,2]
[421332320,1777451439063,-227.75645708,8.971e-05,2]
[421332321,1777451439073,-412.4932,9.418e-05,2]
[421332322,1777451439084,-150.0,9.518e-05,2]
[421332323,1777451439093,-150.0,9.518e-05,2]
[421332324,1777451439103,-150.0,9.518e-05,2]
[421332325,1777451439113,-150.0,9.518e-05,2]
[421332326,1777451439123,-150.0,9.518e-05,2]
[421332327,1777451439134,-150.0,9.518e-05,2]
[421332328,1777451439143,-150.0,9.518e-05,2]
[421332330,1777451439153,-181.08010149,9.519e-05,2]
[421332331,1777451439163,-2685.55055611,9.622e-05,2]
[421332332,1777451439173,-150.0,9.65e-05,2]
[421332333,1777451439183,-150.0,9.669e-05,2]
[421332334,1777451439192,-3557.88,9.67e-05,2]
[421332336,1777451439202,-1213.5,9.67e-05,2]
[421332338,1777451439213,-581.25,9.67e-05,2]
[421332340,1777451439222,-999.99,9.67e-05,2]
[421332341,1777451439232,-150.0,9.694e-05,2]
[421332343,1777451439242,-150.0,9.782e-05,2]
[421332345,1777451439252,-250.0,9.866e-05,2]
[421332346,1777451439262,-250.0,9.866e-05,2]
[421332348,1777451439272,-1680.0,9.866e-05,2]
[421332350,1777451439282,-2500.0,9.867e-05,2]
[421332352,1777451439291,-150.0,9.87e-05,2]
[421332354,1777451439301,-150.0,9.87e-05,2]
[421332356,1777451439311,-150.0,9.87e-05,2]
[421332358,1777451439322,-150.0,9.87e-05,2]
[421332360,1777451439332,-3640.448,9.872e-05,2]
[421332362,1777451439341,-323.82,9.872e-05,2]
[421332364,1777451439351,-150.0,9.914e-05,2]
[421332366,1777451439361,-2776.31,0.00010021,2]
[421332368,1777451439370,-150.0,0.00010047,2]
[421332370,1777451439380,-150.0,0.00010047,2]
[421332372,1777451439389,-150.0,0.00010047,2]
[421332373,1777451439398,-150.0,0.00010179,2]
[421332375,1777451439408,-150.0,0.00010223,2]
[421332377,1777451439418,-150.0,0.00010223,2]
[421332379,1777451439427,-150.0,0.00010223,2]
[421332381,1777451439438,-150.0,0.00010223,2]
[421332382,1777451439447,-150.0,0.00010311,2]
[421332384,1777451439456,-150.0,0.00010399,2]
[421332386,1777451439466,-500.0,0.00010414,2]
[421332388,1777451439476,-440.62434258,0.00010414,2]
[421332390,1777451439487,-10005.47028755,0.00010418,2]
[421332392,1777451439496,-150.0,0.00010443,2]
[421332393,1777451439506,-9511.3,0.00010475,2]
[421332395,1777451439515,-9999.99,0.00010475,2]
[421332397,1777451439525,-150.99,0.00010475,2]
[421332399,1777451439534,-269.0354,0.00010484,2]
[421332401,1777451439544,-798.51728147,0.0001049,2]
[421332403,1777451439553,-798.51728147,0.00010495,2]
[421332405,1777451439563,-2000.0,0.000105,2]
[421332407,1777451439574,-1906.6064,0.000105,2]
[421332409,1777451439583,-189.18391957,0.000105,2]
[421332411,1777451439593,-5000.0,0.000105,2]
[421332413,1777451439602,-798.51728147,0.000105,2]
[421332414,1777451439613,-274.20071681,0.00010575,2]
[421332416,1777451439622,-150.0,0.00010575,2]
[421332418,1777451439631,-158.91744415,0.00010575,2]
[421332420,1777451439641,-228.14091571,0.00010575,2]
[421332422,1777451439650,-270.32535358,0.00010575,2]
[421332424,1777451439660,-207.73407582,0.00010575,2]
[421332426,1777451439670,-216.5972506,0.00010575,2]
[421332428,1777451439680,-721.12765535,0.00010578,2]
[421332430,1777451439691,-500.0,0.00010578,2]
[421332432,1777451439701,-151.0,0.00010578,2]
[421332434,1777451439711,-500.0,0.00010578,2]
[421332436,1777451439723,-151.0,0.00010578,2]
[421332438,1777451439732,-500.0,0.00010578,2]
[421332440,1777451439742,-151.0,0.00010578,2]
[421332442,1777451439752,-500.0,0.00010578,2]
[421332444,1777451439763,-151.0,0.00010578,2]
[421332446,1777451439773,-500.0,0.00010578,2]
[421332448,1777451439782,-151.0,0.00010578,2]
[421332450,1777451439792,-500.0,0.00010578,2]
[421332452,1777451439801,-500.0,0.00010578,2]
[421332454,1777451439811,-151.0,0.00010578,2]
[421332455,1777451439820,-500.0,0.00010578,2]
[421332457,1777451439830,-151.0,0.00010578,2]
[421332459,1777451439840,-151.0,0.00010578,2]
[421332461,1777451439850,-500.0,0.00010578,2]
[421332463,1777451439860,-151.0,0.00010578,2]
[421332465,1777451439871,-500.0,0.00010578,2]
[421332467,1777451439881,-151.0,0.00010578,2]
[421332469,1777451439891,-500.0,0.00010578,2]
[421332471,1777451439901,-151.0,0.00010578,2]
[421332473,1777451439911,-771.01748645,0.00010578,2]
[421332475,1777451439921,-500.0,0.00010578,2]
[421332477,1777451439931,-500.0,0.00010578,2]
[421332479,1777451439943,-500.0,0.00010578,2]
[421332481,1777451439952,-500.0,0.00010578,2]
[421332483,1777451439962,-500.0,0.00010578,2]
[421332485,1777451439972,-500.0,0.00010578,2]
[421332486,1777451439982,-500.0,0.00010578,2]
[421332489,1777451439993,-500.0,0.00010578,2]
[421332491,1777451440004,-500.0,0.00010578,2]
[421332493,1777451440014,-500.0,0.00010578,2]
[421332495,1777451440024,-151.0,0.00010578,2]
[421332496,1777451440035,-500.0,0.00010578,2]
[421332498,1777451440044,-228.34,0.00010578,2]
[421332500,1777451440054,-250.0,0.00010583,2]
[421332502,1777451440065,-500.0,0.00010583,2]
[421332504,1777451440074,-243.72837771,0.00010583,2]
[421332505,1777451440084,-500.0,0.00010583,2]
[421332507,1777451440094,-500.0,0.00010583,2]
[421332509,1777451440104,-500.0,0.00010583,2]
[421332511,1777451440114,-565.33709094,0.00010583,2]